Cogmind - Beta 14 @@@ ROGUE MODE // 2025.01.11 @ 20:41:20 Player: Byrnorthil Result: Destroyed by 72-VD5(R) with Subdweller Machine Gun Performance ------------- Evolutions (0) 0 Regions Visited (3) 600 Robots Destroyed (28) 140 Value Destroyed (646) 646 Prototype IDs (3) 60 Alien Tech Used (0) 0 Bonus (81) 81 TOTAL SCORE: 1527 Bonus ------- Follower Combat Kills 81 Cogmind --------- Core Integrity 0/250 Matter 290/300 Energy 155/160 System Corruption 0% Temperature Cool (0) Movement Walking (120) Location -10/Subcaves Parts ------- > --- POWER (1) -------- Light Nuclear Core > --- PROPULSION (2) --- Improved Aluminum Leg Improved Aluminum Leg > --- UTILITY (2) ------ Medium Storage Unit Core Shielding > --- WEAPON (2) ------- Heavy Hammer Heavy Hammer > --- INVENTORY (10) --- Subdweller Monowheel Large Storage Unit Subdweller Optics Subdweller Optics Subdweller Beam Cannon Subdweller Machine Gun Datajack Heavy Hammer Heavy Hammer Peak State ------------ > --- POWER ------------ Light Nuclear Core > --- PROPULSION ------- Improved Aluminum Leg Improved Aluminum Leg > --- UTILITY ---------- Medium Storage Unit Core Shielding > --- WEAPON ----------- Heavy Hammer Heavy Hammer > --- INVENTORY -------- Light Nuclear Core Improved Aluminum Leg Improved Aluminum Leg Large Storage Unit Transport Network Coupler Riot Gun Riot Gun Datajack Heavy Hammer Heavy Hammer [Rating: 15] Favorites ----------- Power Ion Engine Engine Ion Engine Power Core Light Nuclear Core Propulsion Improved Aluminum Leg Leg Improved Aluminum Leg Utility Medium Storage Unit Device Heat Sink Storage Medium Storage Unit Processor Visual Processing Unit Protection Core Shielding Weapon Heavy Hammer Ballistic Gun Assault Rifle Impact Weapon Heavy Hammer Build | -11 -10 -10 -10 ------- Run | Yrd Mat Min Sub Slots Evolved . | . . . . Power . | . . . . Propulsion . | . . . . Utility . | . . . . Weapon . | . . . . Parts Attached 22 | 6 11 . 5 Power 5 | 1 1 . 3 Engine 3 | 1 1 . 1 Core 2 | . . . 2 Reactor . | . . . . Propulsion 6 | 2 2 . 2 Treads . | . . . . Leg 6 | 2 2 . 2 Wheel . | . . . . Hover . | . . . . Flight . | . . . . Utility 6 | 1 5 . . Device 2 | . 2 . . Storage 2 | 1 1 . . Processor 1 | . 1 . . Hackware . | . . . . Protection 1 | . 1 . . Artifact . | . . . . Weapon 5 | 2 3 . . Energy Gun . | . . . . Energy Cannon . | . . . . Ballistic Gun 2 | 2 . . . Ballistic Cannon . | . . . . Launcher . | . . . . Special Weapon . | . . . . Impact Weapon 3 | . 3 . . Slashing Weapon . | . . . . Piercing Weapon . | . . . . Special Melee Weapon . | . . . . Unidentified Prototypes . | . . . . Parts Lost 4 | . . . 4 Power 2 | . . . 2 Propulsion 2 | . . . 2 Utility . | . . . . Weapon . | . . . . Highest Loss Streak 1 | . . . 1 To Critical Strikes . | . . . . Average Slot Usage (%) 98 | . 96 100 99 Engine 11 | . 14 14 7 Core 1 | . . . 6 Leg 28 | . 28 28 28 Storage 14 | . 14 14 14 Processor 3 | . 5 . . Protection 8 | . 4 14 14 Ballistic Gun 6 | . 12 . . Impact Weapon 21 | . 15 28 28 Peak Build Rating 15 | 6 13 12 15 Average Rating 11 | 4 10 12 13 On Entrance 7 | . 6 12 12 Naked Turns . | . . . . Heaviest Build 22 | 14 22 22 22 Greatest Support 26 | 20 26 26 26 Greatest Overweight (x) 1 | 1 . . . Average Overweight (x) . | . . . . Largest Inventory Capacity 10 | 8 10 10 10 Average Capacity 9 | 6 8 10 10 Most Carried 10 | 4 10 10 10 Average Carried 8 | 2 8 10 9 Final Capacity 10 | 8 10 10 10 Final Carried 10 | 4 10 10 9 Class Distribution -------------------- 100% | Mutant Dominant Class ---------------- Mutant | -10/Materials Mutant | -10/Mines Mutant | -10/Subcaves Resources | -11 -10 -10 -10 ----------- Run | Yrd Mat Min Sub Matter Collected 594 | 213 341 . 40 Remotely . | . . . . Salvage Created 780 | . 504 22 254 Parts 43 | . 31 . 12 Haulers Intercepted 2 | . 2 . . Recyclers Shooed 1 | . 1 . . Parts Field Recycled . | . . . . Retrieved Matter . | . . . . Parts Self-Destructed . | . . . . Prevented . | . . . . Kills | -11 -10 -10 -10 ------- Run | Yrd Mat Min Sub Combat Hostiles Destroyed 20 | . 14 . 6 Melee 5 | . 3 . 2 Guns 10 | . 10 . . Classes Destroyed 8 | . 6 1 1 Worker 2 | . 2 . . Tunneler 1 | . . 1 . Hauler 2 | . 2 . . Operator 1 | . 1 . . Watcher 2 | . 2 . . Swarmer 6 | . 6 . . Grunt 8 | . 8 . . Subdweller 6 | . . . 6 Best Kill Streak 4 | . 4 1 2 Combat Bots Only 3 | . 3 . 2 Max Kills in Single Turn 2 | . 2 1 1 Gunslinging 1 | . 1 . . Exploded . | . . . . Melee 1 | . 1 . 1 Uniques/NPCs Destroyed . | . . . . Combat | -11 -10 -10 -10 -------- Run | Yrd Mat Min Sub Hostile Shots Fired 123 | . 63 6 54 Missed 39 | . 24 1 14 Damage Taken 1306 | . 441 45 820 Core 258 | . 53 20 185 Absorbed by Shields . | . . . . Redirected to Shielding 44 | . . 3 41 Core Remaining (%) 100 | 100 . . . Volleys Fired 32 | . 32 . . Largest 2 | . 2 . . Hottest 40 | . 40 . . Shots Fired 64 | . 64 . . Gun 64 | . 64 . . Cannon . | . . . . Launcher . | . . . . Special . | . . . . Kinetic 64 | . 64 . . Thermal . | . . . . Explosive . | . . . . Electromagnetic . | . . . . Robot Hit Streak 8 | . 8 . . Robot Miss Streak 6 | . 6 . . Penetration Max . | . . . . Secondary Targets 3 | . 3 . . Max Gunslinging Chain 1 | . 1 . . Shots Hit Robots 90 | . 62 2 26 Core Hits 23 | . 21 . 2 Critical Kills 2 | . 2 . . Critical Parts Destroyed 5 | . 1 . 4 Critical Strikes 9 | . 3 . 6 Smash 9 | . 3 . 6 Melee Attacks 76 | . 33 3 40 Impact 76 | . 33 3 40 Slashing . | . . . . Piercing . | . . . . Sneak Attacks 7 | . 6 1 . Combat Hostiles . | . . . . Follow-up Attacks 6 | . 2 . 4 Damage Inflicted 2682 | . 1662 160 860 Guns 526 | . 526 . . Cannons . | . . . . Explosions . | . . . . Melee 2139 | . 1119 160 860 Ramming 17 | . 17 . . Kinetic 526 | . 526 . . Thermal . | . . . . Explosive . | . . . . Electromagnetic . | . . . . Impact 2139 | . 1119 160 860 Slashing . | . . . . Piercing . | . . . . Highest Corruption . | . . . . Average Corruption . | . . . . Corruption Purged . | . . . . Corruption Blocked . | . . . . Overload Shots . | . . . . Overflow Damage 573 | . 299 67 207 Projectiles . | . . . . Explosions . | . . . . Melee 573 | . 299 67 207 Knockbacks 11 | . 4 1 6 Impact 11 | . 4 1 6 Kinetic . | . . . . Secondary . | . . . . Self-Inflicted Damage . | . . . . Shots . | . . . . Rammed . | . . . . Targets Rammed 6 | . 6 . . Kicked 6 | . 6 . . Crushed . | . . . . Highest Temperature 20 | . 20 . . Average Temperature 7 | . 7 . . Received Heat Transfer 168 | . 132 . 36 Siege Activations . | . . . . Robots Corrupted 7 | . 2 1 4 Combat Hostiles 5 | . 1 . 4 Parts Fried 14 | . 7 1 6 Impact Corruptions 24 | . 14 2 8 Robots Melted . | . . . . Combat Hostiles . | . . . . Parts Melted . | . . . . Heat Transferred . | . . . . Parts Sabotaged . | . . . . Parts Stolen . | . . . . Parts Stripped . | . . . . Power Chain Reactions . | . . . . Alert | -11 -10 -10 -10 ------- Run | Yrd Mat Min Sub Peak Influence 340 | . 340 194 . Initial 57 | . . 57 . Average 143 | . 164 103 . Maximum Alert Level 1 | . 1 . . Low Security (%) 85 | 100 80 100 . Level 1 14 | . 19 . . Level 2 . | . . . . Level 3 . | . . . . Level 4 . | . . . . Level 5 . | . . . . High Security . | . . . . Max Security . | . . . . Squads Dispatched 4 | . 4 . . Investigation 2 | . 2 . . Extermination . | . . . . Reinforcement 2 | . 2 . . Assault . | . . . . Garrison . | . . . . Intercept . | . . . . Searches Triggered . | . . . . Construction Impeded . | . . . . Haulers Reinforced . | . . . . Active Scanning Responses . | . . . . Cargo Convoy Interrupts . | . . . . Stealth | -11 -10 -10 -10 --------- Run | Yrd Mat Min Sub Distress Signals 1 | . 1 . . Communications Jammed . | . . . . Distress Signals . | . . . . Times Spotted 38 | . 26 5 7 Peak Tracking Total 3 | . 3 3 2 Tactical Retreats 2 | . 2 . . Traps | -11 -10 -10 -10 ------- Run | Yrd Mat Min Sub Traps Triggered 2 | . 2 . . Indirectly . | . . . . Trap Hack Attempts . | . . . . Triggered . | . . . . Disarmed . | . . . . Reprogrammed . | . . . . Reused . | . . . . Traps Extracted . | . . . . Installed . | . . . . Triggered . | . . . . Machines | -11 -10 -10 -10 ---------- Run | Yrd Mat Min Sub Machines Disabled . | . . . . Max in Single Turn . | . . . . Machines Repaired . | . . . . Machines Dismantled . | . . . . Machines Sabotaged . | . . . . Overloaded Fab Kills . | . . . . Hacking | -11 -10 -10 -10 --------- Run | Yrd Mat Min Sub Machines Accessed 8 | . 7 . 1 Terminals 5 | . 5 . . Fabricators . | . . . . Repair Stations . | . . . . Recycling Units 2 | . 2 . . Scanalyzers . | . . . . Garrison Access . | . . . . Total Hacks 31 | . 28 . 3 Successful 19 | . 16 . 3 Failed 12 | . 12 . . Catastrophic 1 | . 1 . . Database Lockouts . | . . . . Manual 17 | . 17 . . Terminals 22 | . 22 . . Fabricators . | . . . . Repair Stations . | . . . . Recycling Units 6 | . 6 . . Scanalyzers . | . . . . Garrison Access . | . . . . Terminal Hacks 7 | . 4 . 3 Record 3 | . . . 3 Robot Analysis 1 | . 1 . . Prototype ID Bank 2 | . 2 . . Terminal Index 1 | . 1 . . Fabricator Hacks . | . . . . Repair Station Hacks . | . . . . Recycling Unit Hacks 3 | . 3 . . Report Inventory 2 | . 2 . . Retrieve Components 1 | . 1 . . Scanalyzer . | . . . . Garrison Access Hacks . | . . . . Unauthorized Hacks 9 | . 9 . . Terminals 7 | . 7 . . Botnet 2 | . 2 . . Skim 5 | . 5 . . Fabricators . | . . . . Repair Stations . | . . . . Recycling Units 2 | . 2 . . Tunnel 2 | . 2 . . Scanalyzers . | . . . . Garrison Access . | . . . . Data Cores Recovered . | . . . . Used . | . . . . Hacking Detections 6 | . 6 . . Full Trace Events . | . . . . Feedback Events . | . . . . Feedback Blocked . | . . . . Robot Schematics Acquired . | . . . . Robots Built . | . . . . Authchips . | . . . . Time . | . . . . Total Robot Build Rating . | . . . . Part Schematics Acquired . | . . . . Parts Built . | . . . . Authchips . | . . . . Time . | . . . . Total Part Build Rating . | . . . . Parts Repaired . | . . . . Time . | . . . . Parts Recycled . | . . . . Recycled Matter . | . . . . Retrieved Matter . | . . . . Retrieved Components 2 | . 2 . . Parts Scanalyzed . | . . . . Part Schematics Acquired . | . . . . Parts Damaged . | . . . . Bothacking | -11 -10 -10 -10 ------------ Run | Yrd Mat Min Sub Used RIF Installer . | . . . . Robots Hacked . | . . . . Non-combat . | . . . . Combat . | . . . . Robot Hacks Applied . | . . . . Relay Couplers Released . | . . . . Fabnet Peak Effective % . | . . . . Robots Rewired . | . . . . Allies Hacked . | . . . . Hacks Repelled . | . . . . Allies | -11 -10 -10 -10 -------- Run | Yrd Mat Min Sub Total Allies 3 | . . 3 . Largest Group 3 | . . 3 2 Highest-Rated Group 40 | . . 40 32 Highest-Rated Ally 16 | . . 16 16 Total Orders . | . . . . Ally Attacks 23 | . . 19 4 Total Damage 179 | . . 179 . Kills 6 | . . 6 . Allies Corrupted . | . . . . Allies Melted . | . . . . Intel | -11 -10 -10 -10 ------- Run | Yrd Mat Min Sub Robot Analysis Total 1 | . 1 . . Derelict Logs Recovered 4 | . . 2 2 Drone Launches . | . . . . Drone Recoveries . | . . . . Exploration | -11 -10 -10 -10 ------------- Run | Yrd Mat Min Sub Turns Passed 2933 | 63 1485 529 856 Spaces Moved 1877 | 48 788 430 611 Core 10 | 10 . . . Treads . | . . . . Legs 1867 | 38 788 430 611 Wheels . | . . . . Hover . | . . . . Flight . | . . . . Fastest Speed 50 | 50 120 120 120 Average Speed 119 | 106 120 120 120 Slowest Speed 120 | 120 120 120 120 Overloaded Moves . | . . . . Propulsion Burnouts . | . . . . Robots Hopped . | . . . . Cave-ins Triggered . | . . . . Exploration Rate (%) 59 | 4 96 97 42 Regions Visited 3 Branch Regions 2 Pre-discovered Areas 8 | . 5 2 1 Known Exits Taken 1 | . . 1 . Unknown Exits Taken 2 | 1 1 . . Scrap Searched 2 | . . 1 1 Spaces Dug 2 | . 1 . 1 Terrain Destroyed 2 | . 1 . 1 Melee 2 | . 1 . 1 Projectile . | . . . . AOE . | . . . . Terrain Rammed . | . . . . Walls Destroyed . | . . . . Machines Disabled . | . . . . Actions | -11 -10 -10 -10 --------- Run | Yrd Mat Min Sub Total 2389 | 57 1218 437 677 Wait 347 | . 326 5 16 Move 1874 | 47 787 429 611 Hop . | . . . . Pick Up 24 | 4 13 . 7 Fast Attach 13 | 6 6 . 1 Attach 3 | . . . 3 Detach 1 | . 1 . . Swap 6 | . 5 . 1 Drop 20 | . 15 . 5 Fire 32 | . 32 . . Melee 63 | . 27 3 33 Ram . | . . . . Kick 6 | . 6 . . Crush . | . . . . Escape Stasis . | . . . . Rewire . | . . . . Trap . | . . . . Miscellaneous . | . . . . Route ------- -11/Scrapyard -10/Materials (discovered 5 exits: *Mat x3 / [*Min] / Sub) -10/Mines (discovered 3 exits: *Mat x2 / *Sub) -10/Subcaves (discovered 2 exits: *Mat x2) History --------- Turn | Location | Event 6 | -11/Scrapyard | Discovered new exit (range 15) 64 | -11/Scrapyard | Entered Materials 175 | -10/Materials | Discovered new exit (range 3) 305 | -10/Materials | Build established: Mutant 365 | -10/Materials | Discovered new exit (range 14) 1073 | -10/Materials | Discovered new exit (range 5) 1198 | -10/Materials | Discovered new exit (range 5) 1260 | -10/Materials | Identified exit to Materials 1400 | -10/Materials | Learned location of 2 exits from Mines 1424 | -10/Materials | Learned location of Mines (-8) 1462 | -10/Materials | Learned location of Recycling (-8) 1494 | -10/Materials | Learned 4 Subcaves zone layouts 1538 | -10/Materials | Identified exit to Subcaves 1549 | -10/Materials | Entered Mines 1552 | -10/Mines | Assisted by bots powering up and referring to "LRC-V3" 1656 | -10/Mines | Learned location of Zion (-7) 2078 | -10/Mines | Entered Subcaves 2078 | -10/Subcaves | Accompanied by 2 allies 2079 | -10/Subcaves | Identified exit to Materials 2101 | -10/Subcaves | Met a Zionite searching for "candidates" 2230 | -10/Subcaves | A swath of the cavern ceiling suddenly collapsed 2411 | -10/Subcaves | Core integrity fell below 50% 2431 | -10/Subcaves | Learned 4 Materials zone layouts 2466 | -10/Subcaves | Discovered exit to Materials (range 4) 2470 | -10/Subcaves | Shifting Twisted Machinery released Riot Gun 2474 | -10/Subcaves | Shifting Twisted Machinery released Sub. Beam Cannon 2561 | -10/Subcaves | Learned location of 1 exit from Materials 2627 | -10/Subcaves | Shifting Twisted Machinery released Battle Rifle 2702 | -10/Subcaves | Shifting Twisted Machinery released Flamer 2810 | -10/Subcaves | Visited Clippyterm 2814 | -10/Subcaves | Learned Factory fabricator intel 2898 | -10/Subcaves | A Subdweller sparked back to life 2898 | -10/Subcaves | A Subdweller sparked back to life 2898 | -10/Subcaves | A Subdweller sparked back to life 2912 | -10/Subcaves | Core integrity fell below 20% 2934 | -10/Subcaves | Destroyed by 72-VD5(R) with Subdweller Machine Gun Last Messages --------------- 02898_ GT-5KA(R) knocked back. 02898_ GT-5KA(R) creaks and sparks as it begins to move. 02898_ 0L-13H(R) creaks and sparks as it begins to move. 02898_ 72-VD5(R) creaks and sparks as it begins to move. 02899_ GT-5KA(R) system terminally corrupted. 02899_ Disposable Heat Sink fried. 02899_ Sub. Monowheel fried. 02899_ Sub. Power Source fried. 02909_ 0L-13H(R) suffers critical hit (Smash). 02915_ Sub. Power Source destroyed. 02918_ Hvy. Hammer follow-up attack on 0L-13H(R). 02922_ 72-VD5(R) affixes Scrap Shield Fragment to Scrap Shield. 02923_ 0L-13H(R) affixes Scrap Shield Fragment to Scrap Shield. 02929_ 0L-13H(R) suffers critical hit (Smash). 02929_ Destroyed Sub. Optics. 02929_ 0L-13H(R) system corrupted by crushing effect. 02930_ 0L-13H(R) system terminally corrupted. 02934_ Destroyed Sub. Optics. 02934_ 72-VD5(R) system corrupted by crushing effect. 02934_ 72-VD5(R) knocked back. Map ----- +----------------------------------------------------+ | #"#""#?# ###?????????????????#" "#?? | | """""#?# ##???????????????????### ###?? | | ""##"### ### ###?????????????????????## ###?? | | #"##### ##?####??????????????????????## ##? | | "## #????????????????????????????# ## | | # ####????????????????????????????# | | ##??????????????????????????????# | | ### ####???????????????????????????### | | ??## ##????????????????????????????## # | | ???## ## #?????????????????????????????# # | | #??## #### #????####?????????????????????# ### | | #?## ##??# ####?# ###???????????????????## #? | | #?# ##??## # ### #???????????????????# ##? | | #?# ##??# #?????????######????# #?? | | #?# #??# #????????## ##???## ##? | | ### ##??# ### # #????????# ##??## #? | | ##??## #?#### #????????# #??# ## | | #???## #????# ##??????## #??# # | | #????## #????# ##?????# #??# | | ### #?????####????# #?????# #???# # | | ##?#####?????????????## ######?# ######## ### | | ?????????????????????## ### ## # ## ## | | ?????????????????????# ## ## | | ?????????????????????# < ### | | ????????????????????## < < # # | | ???????????????????## @ % ## # # ### | | ???????????????????# < % = ## ## # #? | | ???????????????????####R< # ### ## #### # | | ??????????????????????##### #?# #??## | | ??????????????????????????# #?# ### ### #??? | | ?????????????????????????# #?###?###?? #??? | | ?????????????????????????# ## ##??????????###??? | | ?????????????????????????########????????????????? | | ?????????????????????????????????????????????????? | | ?????????????????????????????????????????????????? | | ?????????????????????????????????????????????????? | | ?????????????????????????????????????????????????? | | ?????????????????????????????????????????????????? | | ?????????????????????????????????????????????????? | | ?????????????????????????????????????????????????? | | ?????????????????????????????????????????????????? | | ?????????????????????????????????????????????????? | | ?????????????????????????????????????????????????? | | ?????????????????????????????????????????????????? | | ?????????????????????????????????????????????????? | | ?????????????????????????????????????????????????? | | ?????????????????????????????????????????????????? | | ?????????????????????????????????????????????????? | | ?????????????????????????????????????????????????? | | ?????????????????????????????????????????????????? | +----------------------------------------------------+ Best States ------------- Heat Dissipation 35 Energy Generation 14 Energy Capacity 250 Matter Stores 300 Matter Capacity 300 Sight Range 18 Terrain Scan Density 10 Core Shielding 20 Evasion (%) 55 Item Schematics ----------------- None Robot Schematics ------------------ None Fabricated ------------ Nothing Alien Tech Used ----------------- None Achievements -------------- None Challenges ------------ None Game ------ Seed FissionHeartBooster Manual? 0 Play Time 00:26:44 Cumulative 185.3 hours Start 2025.01.11 @ 19:30:18 End 2025.01.11 @ 20:41:20 Sessions 3 Manual Loads 0 Difficulty Rogue Special Mode None Game No. 59 Rogue 59 Adventurer 0 Explorer 0 Win Type - Total 3 Types 2/0/1/0/0/0/0/0/0 Lore% 62 Gallery% 72 Achievement% 62 Wizard Run 0 Options --------- Layout 0 ASCII 0 Keyboard 1 Movement Arrows Keybinds 0 Fullscreen 2 Font 36/Terminus++ Map View 76x50 Zoom Use 0% Tactical HUD 1 Map Filters NONE Filters NONE Steam 1 RUN: 7188cd3f-da5a-40d1-bedd-21e4b0f827ee